[Event "GRENKE Chess Classic 2024"]
[Site "Karlsruhe"]
[Date "2024.03.28"]
[Round "6.1"]
[White "Fridman, Daniel"]
[Black "Keymer, Vincent"]
[Result "1/2-1/2"]
[ECO "A05"]
[WhiteElo "2590"]
[BlackElo "2738"]
[Annotator "TA"]
[PlyCount "126"]
[EventDate "2024.03.26"]
[EventType "tourn"]
[EventCountry "GER"]
[SourceTitle "playchess.com"]
[Source "ChessBase"]
[SourceQuality "1"]
[TimeControl "2700+10"]

{[%evp 51,126,0,0,0,0,0,0,-4,-5,-6,-8,-11,0,0,0,0,0,0,0,-8,-16,-2,0,0,0,-15,-15,-11,-15,-15,-10,-15,-15,-10,-16,-16,-10,-8,-10,-16,-4,-115,-121,-111,-129,-140,-140,-260,-243,-485,-257,-584,-97,-91,-91,-45,0,0,0,0,0,0,0,0,0,-684,-963,-963,-956,-956,-917,-915,0,-515,0,-455,0]} 1. Nf3 {[%emt 0:00:02]} Nf6 {[%emt 0:00:24]} 2. g3 {[%emt 0:00:01]} b5 {[%emt 0:00:16]} 3. Bg2 {[%emt 0:00:07]} Bb7 {[%emt 0:00:01]} 4. Na3 {[%emt 0:00:01]} a6 {[%emt 0:01:57]} 5. c4 {[%emt 0:00:02]} bxc4 {[%emt 0:00:07]} 6. Nxc4 {[%emt 0:00:02] A05: Réti Opening: 1 Nf3 Nf6.} e6 {[%emt 0:00:04]} 7. O-O {[%emt 0:00:03]} Be7 {[%emt 0:00:32]} 8. d3 {[%emt 0:00:53]} c5 {[%emt 0:01:31]} 9. Qb3 {[%emt 0:01:07]} Ra7 {[%emt 0:00:23]} 10. Qb6 $146 {[%emt 0:03:20]} ({Predecessor:} 10. Bd2 Nc6 11. Qa4 O-O 12. Rac1 a5 13. Bc3 d6 14. Rfd1 Nd7 15. e4 Nb4 16. Bxb4 cxb4 {1-0 Bharath,S (2504)-Keymer,V (2738) Wch Rapid Samarkand 2023 (1)}) 10... Qxb6 {[%emt 0:03:18]} 11. Nxb6 {[%emt 0:00:02]} Nc6 {[%emt 0:00:14]} 12. b3 {[%emt 0:00:03]} d6 {[%emt 0:05:03]} 13. Bb2 {[%emt 0:00:06]} e5 {[%emt 0:00:09]} 14. Nd2 {[%emt 0:01:36]} Nb4 {[%emt 0:02:24]} 15. a3 {[%emt 0:02:14]} Nbd5 {[%emt 0:06:55]} 16. Nxd5 {[%emt 0:00:42]} Nxd5 {[%emt 0:00:23]} 17. e3 {[%emt 0:02:45]} f6 {[%emt 0:01:35]} 18. d4 {[%emt 0:00:13]} cxd4 {[%emt 0:00:41]} 19. exd4 {[%emt 0:00:02]} Kf7 {[%emt 0:00:23]} 20. Nc4 {[%emt 0:00:47]} Nc7 {[%emt 0:02:55]} 21. dxe5 {[%emt 0:00:20]} dxe5 {[%emt 0:00:13]} 22. f4 {[%emt 0:02:34]} exf4 {[%emt 0:01:31]} 23. Rxf4 {[%emt 0:00:03]} Ne6 {[%emt 0:00:45]} 24. Rff1 {[%emt 0:00:54]} Rd8 {[%emt 0:05:52]} 25. b4 {[%emt 0:03:56]} Bxg2 {[%emt 0:01:14]} 26. Kxg2 {[%emt 0:02:52]} Rc7 {[%emt 0:00:14]} 27. Rac1 {[%emt 0:01:08]} Rdc8 {[%emt 0:00:03]} 28. Ne5+ {[%emt 0:01:28]} Ke8 {[%emt 0:00:22]} 29. Rxc7 {[%emt 0:00:17]} Rxc7 {[%emt 0:00:02]} 30. Nd3 {[%emt 0:00:02]} Kd7 {[%emt 0:00:28]} 31. Rf2 {[%emt 0:01:17]} Bd6 {[%emt 0:01:18]} 32. Rd2 {[%emt 0:00:55]} Ke7 {[%emt 0:01:18]} 33. Nc1 {[%emt 0:03:14]} Rc4 {[%emt 0:00:39]} 34. Nb3 {[%emt 0:00:20]} Bc7 {[%emt 0:00:07]} 35. Nd4 {[%emt 0:01:18]} Nxd4 {[%emt 0:00:28]} 36. Bxd4 {[%emt 0:00:03]} Bd6 {[%emt 0:00:08]} 37. Kf3 {[%emt 0:00:27]} h5 {[%emt 0:00:23]} 38. h3 {[%emt 0:02:19]} Rc1 {[%emt 0:01:00]} 39. Rd3 {[%emt 0:01:44]} Ke6 {[%emt 0:00:17]} 40. Be3 {[%emt 0:01:31]} Rh1 {[%emt 0:00:34]} 41. Kg2 {[%emt 0:00:25]} Ra1 {[%emt 0:00:26]} 42. Bf4 {[%emt 0:03:05]} Bxf4 {[%emt 0:00:08]} 43. gxf4 {[%emt 0:00:03]} Kf5 {[%emt 0:00:07]} 44. Kf3 {[%emt 0:00:19]} Rf1+ {[%emt 0:01:16]} 45. Kg2 $1 {[%emt 0:00:02]} Ke4 {[%emt 0:02:27]} 46. Rd6 {[%emt 0:00:04]} (46. Rb3 $11 {keeps the balance.} Ra1 (46... Rxf4 47. a4 $11) 47. Kg3) 46... Rb1 $1 $17 {[%emt 0:00:07]} 47. Rxa6 {[%emt 0:00:12]} Kxf4 {[%emt 0:00:20]} 48. h4 {[%emt 0:03:25]} Rb2+ {[%emt 0:00:03]} 49. Kf1 {[%emt 0:02:05]} (49. Kh3 $17) 49... Kf3 {[%emt 0:00:02]} 50. Ke1 $2 {[%emt 0:00:08]} (50. Re6 {only move.}) 50... Kg4 {[%emt 0:00:26]} (50... Kg3 $142 51. Kd1 g5 (51... Kxh4 52. Kc1 $17)) 51. Kd1 $2 {[%emt 0:00:19] [#]} (51. Re6 {was the crucial defense.} Kxh4 52. Re3) 51... Kxh4 $2 {[%emt 0:00:23]} (51... g5 $1 $19 {[%cal Rg5h4] is more deadly.} 52. Rxf6 Kxh4) 52. Kc1 $17 {[%emt 0:00:01]} Re2 {[%emt 0:00:27]} 53. b5 {[%emt 0:00:02]} Kg3 {[%emt 0:00:49]} 54. b6 {[%emt 0:00:46]} Re8 {[%emt 0:00:24]} 55. a4 {[%emt 0:01:46]} h4 {[%emt 0:00:27]} 56. Ra7 {[%emt 0:00:02]} Rg8 $1 {[%emt 0:00:09]} (56... g5 57. a5 Rh8 58. Rd7 $18 (58. b7 Rb8 $17)) 57. a5 {[%emt 0:00:10]} (57. Re7 $5 h3 $8 58. b7 $11) 57... h3 {[%emt 0:00:02]} 58. Rd7 $2 {[%emt 0:00:04][%mdl 8192]} (58. Re7 $11 Kf2 59. Rc7) 58... h2 $19 {[%emt 0:00:05]} 59. Rd3+ {[%emt 0:00:03]} Kh4 {[%emt 0:00:26]} 60. Rd4+ {[%emt 0:00:02]} Kh3 {[%emt 0:00:05]} 61. Rd3+ {[%emt 0:00:02]} Kh4 {[%emt 0:00:03]} 62. Rd4+ $1 {[%emt 0:00:02]} Kh3 {[%emt 0:00:01]} 63. Rd3+ {[%emt 0:00:05] [#]} Kh4 $2 {[%emt 0:00:01]} (63... Kg4 $1 $19 64. Rd4+ Kg5) 1/2-1/2

[Event "GRENKE Chess Classic 2024"]
[Site "Karlsruhe"]
[Date "2024.03.28"]
[Round "6.2"]
[White "Carlsen, Magnus"]
[Black "Rapport, Richard"]
[Result "1-0"]
[ECO "A61"]
[WhiteElo "2830"]
[BlackElo "2720"]
[Annotator "TA"]
[PlyCount "63"]
[EventDate "2024.03.26"]
[EventType "tourn"]
[EventCountry "GER"]
[SourceTitle "playchess.com"]
[Source "ChessBase"]
[SourceQuality "1"]
[TimeControl "2700+10"]

{[%evp 16,63,38,0,19,22,22,25,21,18,27,37,32,18,32,29,30,0,14,14,11,-15,-16,-8,16,27,21,0,0,0,38,37,39,0,43,29,163,149,455,357,478,550,553,543,573,581,583,519,833,823]} 1. d4 {[%emt 0:00:03]} Nf6 {[%emt 0:00:10]} 2. c4 {[%emt 0:00:08]} e6 {[%emt 0:00:04]} 3. Nf3 {[%emt 0:00:06]} c5 {[%emt 0:00:04]} 4. d5 {[%emt 0:00:04]} d6 {[%emt 0:00:02]} 5. Nc3 {[%emt 0:00:03]} exd5 {[%emt 0:00:01]} 6. cxd5 {[%emt 0:00:02]} g6 {[%emt 0:00:02]} 7. h3 {[%emt 0:00:17]} Bg7 {[%emt 0:00:14]} 8. e4 {[%emt 0:00:02]} O-O {[%emt 0:00:04]} 9. Be3 {[%emt 0:00:05]} Re8 {[%emt 0:00:21]} (9... Qe7 $5) 10. Nd2 {[%emt 0:00:10]} a6 {[%emt 0:00:12][%cal Of6e4]} 11. a4 {[%emt 0:00:40]} Nxe4 {[%emt 0:00:05] White has an edge.} 12. Ncxe4 {[%emt 0:00:03] Black must now prevent Be2.} f5 $1 {[%emt 0:00:01] [#]} 13. Be2 $1 {[%emt 0:00:20] aiming for Bg5.} fxe4 {[%emt 0:00:03]} 14. Nc4 {[%emt 0:00:05]} a5 {[%emt 0:00:33]} 15. Bf4 {[%emt 0:07:32][%cal Od1b3][%mdl 1024] White has compensation.} Bf8 {[%emt 0:00:14]} 16. Ra3 {[%emt 0:01:32]} Na6 $1 {[%emt 0:00:07]} 17. O-O {[%emt 0:02:05]} Nb4 {[%emt 0:00:06]} 18. Qd2 {[%emt 0:00:37][%cal Oh3h4]} b6 {[%emt 0:03:11]} 19. Rg3 {[%emt 0:03:01][%cal Oh3h4]} Ra7 {[%emt 0:00:55] [#]} 20. h4 $1 {[%emt 0:00:59][%cal Bh3h4,Bh4h5][%mdl 32]} Rf7 {[%emt 0:06:51]} (20... Ba6 21. h5) 21. Bg5 {[%emt 0:08:11]} Be7 {[%emt 0:03:43]} 22. Bxe7 {[%emt 0:00:01]} Qxe7 {[%emt 0:02:19]} 23. h5 {[%emt 0:00:02]} Bf5 {[%emt 0:04:13]} 24. Bg4 {[%emt 0:01:56] Hoping for hxg6.} Bxg4 {[%emt 0:04:18]} 25. Rxg4 {[%emt 0:00:03]} Rg7 {[%emt 0:02:46]} (25... Rf5 $11 {and Black is okay.} 26. Qh6 Qf8 27. Qxf8+ Rexf8) 26. Re1 $18 {[%emt 0:03:16] Strongly threatening Rgxe4.} ({Stronger than} 26. Nxb6 gxh5 27. Rxg7+ Kxg7 $11 (27... Qxg7 28. Qf4 $15)) 26... gxh5 $2 {[%emt 0:00:12][%mdl 8192] This move loses the game for Black.} (26... Qf6 $16) 27. Rgxe4 {[%emt 0:00:12]} Qxe4 {[%emt 0:00:03]} 28. Rxe4 {[%emt 0:00:02] White is clearly winning.} Rxe4 {[%emt 0:00:01]} 29. Nxd6 {[%emt 0:00:53]} Re5 {[%emt 0:00:20]} 30. f4 {[%emt 0:01:11]} Rxd5 {[%emt 0:00:33]} 31. Qe2 {[%emt 0:00:02][%cal Re2e8]} h6 {[%emt 0:00:38]} (31... Ra7 $142) 32. Qe6+ {[%emt 0:00:56] Weighted Error Value: White=0.15 (very precise) /Black=0.40.  Loses game:     	---       	Black=1      Mistake:       	---       	Black=2      Inaccurate:     	White=2     	Black=3      OK:         	White=11    	Black=7      Best:        	White=2     	Black=1      Strong:       	---       	Black=2} 1-0

[Event "GRENKE Chess Classic 2024"]
[Site "Karlsruhe"]
[Date "2024.03.28"]
[Round "6.3"]
[White "Ding, Liren"]
[Black "Vachier-Lagrave, Maxime"]
[Result "1/2-1/2"]
[ECO "A48"]
[WhiteElo "2762"]
[BlackElo "2728"]
[Annotator "TA"]
[PlyCount "75"]
[EventDate "2024.03.26"]
[EventType "tourn"]
[EventCountry "GER"]
[SourceTitle "playchess.com"]
[Source "ChessBase"]
[SourceQuality "1"]
[TimeControl "2700+10"]

{[%evp 17,75,0,12,0,0,0,31,0,8,6,21,22,42,46,37,31,53,32,50,48,68,50,47,45,67,73,71,75,77,77,77,73,64,56,73,80,81,80,80,70,68,68,80,66,72,73,66,60,79,78,78,76,78,75,88,0,59,0,96,0]} 1. d4 {[%emt 0:00:02]} Nf6 {[%emt 0:00:01]} 2. Nf3 {[%emt 0:00:03]} g6 {[%emt 0:00:10]} 3. c4 {[%emt 0:00:16]} Bg7 {[%emt 0:00:01]} 4. e3 {[%emt 0:00:01]} O-O {[%emt 0:00:14]} 5. Be2 {[%emt 0:00:02]} c5 {[%emt 0:00:05]} 6. d5 {[%emt 0:00:01]} e6 {[%emt 0:00:03]} 7. Nc3 {[%emt 0:00:02]} d6 {[%emt 0:00:02]} 8. O-O {[%emt 0:00:09]} exd5 {[%emt 0:00:02]} 9. cxd5 {[%emt 0:00:01]} Bg4 {[%emt 0:00:01]} 10. h3 {[%emt 0:00:31]} Bxf3 {[%emt 0:00:02]} 11. Bxf3 {[%emt 0:00:01]} Qe7 {[%emt 0:00:08]} 12. Bd2 {[%emt 0:01:45] White is slightly better.} Nbd7 {[%emt 0:00:57][%cal Bb8d7,Bd7c5,Bc5e4,Be4d2][%mdl 32]} 13. Qc2 {[%emt 0:01:38]} a6 {[%emt 0:00:55]} 14. a4 {[%emt 0:00:01]} c4 {[%emt 0:00:02]} 15. Be2 {[%emt 0:01:23]} Rac8 {[%emt 0:01:12]} 16. Rfd1 {[%emt 0:00:03]} Rfe8 {[%emt 0:01:09]} 17. Rac1 {[%emt 0:01:33]} Nc5 {[%emt 0:02:20]} 18. Bxc4 {[%emt 0:00:53]} Nce4 {[%emt 0:00:02]} 19. Bf1 {[%emt 0:01:34]} Nxd2 {[%emt 0:03:13]} ({Wrong is} 19... Nxf2 $2 20. Kxf2 Bh6 21. Kg1 $18) 20. Qxd2 {[%emt 0:00:03]} Rc5 {[%emt 0:01:06]} 21. b4 Rc7 {[%emt 0:00:29]} 22. b5 {[%emt 0:02:08]} axb5 {[%emt 0:00:50]} 23. Nxb5 {[%emt 0:00:45]} Rxc1 {[%emt 0:00:02]} 24. Qxc1 {[%emt 0:01:14]} Ne4 {[%emt 0:00:06]} 25. Bd3 {[%emt 0:00:01]} Nc5 {[%emt 0:01:22]} 26. Qc4 {[%emt 0:00:08]} Rc8 {[%emt 0:01:01]} 27. Bc2 {[%emt 0:00:14]} Qd8 {[%emt 0:00:02]} 28. Qe2 {[%emt 0:00:49] White is more active.} h5 {[%emt 0:00:33]} 29. Rb1 {[%emt 0:00:30]} Be5 {[%emt 0:00:48]} 30. Nd4 {[%emt 0:00:14]} Qe7 {[%emt 0:01:26] [#] Threatens to win with ...Bxd4.} 31. Nf3 {[%emt 0:00:06]} Bf6 {[%emt 0:00:17]} 32. Rb4 {[%emt 0:00:43]} Qd8 {[%emt 0:00:53]} 33. g3 {[%emt 0:01:43]} Kg7 {[%emt 0:00:14]} 34. Kg2 {[%emt 0:00:01]} Qa5 {[%emt 0:01:02]} 35. Qb5 {[%emt 0:00:31]} Qd8 {[%emt 0:01:20]} 36. Qe2 {[%emt 0:02:00]} Qa5 $1 {[%emt 0:00:01]} 37. Qb5 {[%emt 0:00:01]} Qd8 {[%emt 0:00:01]} 38. Qe2 {[%emt 0:03:01] Weighted Error Value: White=0.12 (very precise) /Black=0.07 (flawless) .  Mistake:       	White=1     	---        Inaccurate:     	White=1     	Black=1      OK:         	White=10    	Black=9      Strong:       	---       	Black=1} (38. Rc4 $16) 1/2-1/2

[Event "GRENKE Chess Classic 2024"]
[Site "Karlsruhe"]
[Date "2024.03.30"]
[Round "7.1"]
[White "Rapport, Richard"]
[Black "Ding, Liren"]
[Result "1-0"]
[ECO "C26"]
[WhiteElo "2720"]
[BlackElo "2762"]
[Annotator "TA"]
[PlyCount "107"]
[EventDate "2024.03.26"]
[EventType "tourn"]
[EventCountry "GER"]
[SourceTitle "playchess.com"]
[Source "ChessBase"]
[SourceQuality "1"]
[TimeControl "2700+10"]

{[%evp 29,107,104,88,105,94,84,124,89,108,76,79,79,87,70,79,68,82,76,145,143,135,126,141,90,115,112,128,131,120,133,132,135,130,130,144,133,132,131,129,146,134,135,209,139,137,135,135,75,79,63,58,58,157,140,152,44,144,143,162,168,164,164,331,321,29952,25,29962,29965,29959,29955,2076,1657,1597,1591,1166,1137,29972,29970,29979,29979]} 1. e4 {[%emt 0:00:19]} e5 {[%emt 0:00:02]} 2. Bc4 {[%emt 0:00:09]} Nf6 {[%emt 0:00:01]} 3. Nc3 {[%emt 0:00:03]} Bc5 {[%emt 0:00:29]} 4. Nge2 {[%emt 0:00:06]} O-O {[%emt 0:01:03]} 5. O-O {[%emt 0:00:08]} c6 {[%emt 0:01:42]} 6. d4 {[%emt 0:01:52] C27: Vienna Game: 2...Nf6 3 Bc4 Nxe4.} exd4 {[%emt 0:00:02]} 7. Nxd4 {[%emt 0:00:05]} d5 {[%emt 0:00:18]} 8. exd5 {[%emt 0:00:33]} cxd5 {[%emt 0:00:17]} 9. Bb3 {[%emt 0:08:49]} Bg4 $146 {[%emt 0:01:31]} ({Predecessor:} 9... Nc6 10. Be3 Bb6 11. h3 Ne5 12. Bg5 Be6 13. Re1 Bc7 14. Bxf6 Qxf6 15. Bxd5 Rad8 {0-1 Pandelescu,M (1701)-Bulmaga,I (2429) Bucharest Grand Prix op rapid 2024 (1)}) 10. f3 {[%emt 0:00:56]} Nc6 {[%emt 0:03:21]} 11. Nce2 {[%emt 0:03:07]} Bh5 {[%emt 0:02:52]} 12. c3 {[%emt 0:00:50]} Re8 {[%emt 0:00:25]} 13. Bg5 {[%emt 0:01:55]} Bg6 {[%emt 0:00:49]} 14. Kh1 {[%emt 0:00:50]} Qb6 {[%emt 0:05:49]} 15. Bxf6 {[%emt 0:00:26]} gxf6 {[%emt 0:00:01]} 16. Nf4 $1 {[%emt 0:00:35]} Ne7 {[%emt 0:02:08]} 17. Qd2 {[%emt 0:01:57]} (17. Bxd5 Rad8 18. Be4 Kh8 $11) 17... Kg7 {[%emt 0:00:08]} 18. Rfe1 {[%emt 0:01:41]} (18. Nxd5 Nxd5 19. Bxd5 Rad8 $15) (18. Bxd5 $6 Red8 19. Be4 Bxd4 20. cxd4 Rxd4 $11) 18... Bxd4 {[%emt 0:00:35]} 19. Qxd4 {[%emt 0:03:17]} Qxd4 {[%emt 0:00:07]} 20. cxd4 {[%emt 0:00:02]} Nf5 {[%emt 0:01:45]} 21. Red1 {[%emt 0:02:35]} (21. Nxd5 $6 Nxd4 22. Rxe8 Rxe8 $11) 21... Rad8 {[%emt 0:02:54]} 22. Rac1 {[%emt 0:01:07]} (22. Nxd5 Re2 $11) (22. Bxd5 Rd7 $11 (22... Ne3 23. Re1 $14)) 22... Ne3 {[%emt 0:00:03]} 23. Re1 {[%emt 0:01:38]} Nc4 {[%emt 0:03:00]} (23... Nf5 $142) 24. Rxe8 $16 {[%emt 0:00:30]} Rxe8 {[%emt 0:00:01]} 25. h4 {[%emt 0:00:07]} (25. Nxd5 Nxb2 26. h4 a5 $16) 25... b5 {[%emt 0:01:11]} 26. Nxd5 {[%emt 0:01:03]} (26. h5 $142 Bf5 27. Nxd5) 26... Nxb2 {[%emt 0:00:06]} 27. Rc7 {[%emt 0:03:19]} a5 {[%emt 0:00:05]} 28. Nf4 $1 {[%emt 0:00:06]} a4 {[%emt 0:01:01]} 29. Bd5 {[%emt 0:00:03]} Nd3 {[%emt 0:00:07]} 30. Nxg6 {[%emt 0:01:08]} hxg6 {[%emt 0:00:06]} 31. Rxf7+ {[%emt 0:00:02]} Kh6 {[%emt 0:00:01]} 32. Rxf6 {[%emt 0:00:04]} Rd8 {[%emt 0:00:02]} 33. Bc6 $1 {[%emt 0:00:32]} Kg7 {[%emt 0:00:13]} 34. Re6 {[%emt 0:00:03]} Rxd4 {[%emt 0:00:01]} 35. Bxb5 {[%emt 0:00:32]} Rxh4+ {[%emt 0:00:12]} 36. Kg1 {[%emt 0:00:01]} Rd4 {[%emt 0:03:08]} 37. a3 {[%emt 0:00:08]} g5 {[%emt 0:04:03]} 38. Re3 {[%emt 0:01:19]} ({White should play} 38. Kh2) 38... Nf4 $16 {[%emt 0:01:04]} 39. Re4 {[%emt 0:01:24]} Rd1+ $1 {[%emt 0:05:13]} 40. Bf1 {[%emt 0:00:04]} Nd5 {[%emt 0:00:32]} ({Black should try} 40... Ra1 $14) 41. Kf2 $1 $16 {[%emt 0:00:02]} ({Worse is} 41. Rxa4 Ne3 42. Ra7+ Kf6 $11) 41... Rd2+ {[%emt 0:00:17]} 42. Kg3 {[%emt 0:00:36]} (42. Ke1 $16 Ra2 43. Re5 (43. Rxa4 Ne3 $14)) 42... Rd1 {[%emt 0:01:09]} (42... Kf6 $14) 43. Bc4 {[%emt 0:01:21]} Nf4 {[%emt 0:00:19]} 44. Kg4 {[%emt 0:00:05]} Nxg2 {[%emt 0:02:03]} 45. Kxg5 {[%emt 0:00:04]} Ra1 $2 {[%emt 0:00:02]} (45... Rc1 46. Be2 Rc5+ 47. Kg4 Rc3) 46. Re8 $18 {[%emt 0:05:35]} Rxa3 $2 {[%emt 0:00:37]} (46... Rb1 $18 47. Rg8+ Kh7) 47. Rg8+ {[%emt 0:00:01]} Kh7 {[%emt 0:00:01]} 48. Rf8 $1 {[%emt 0:00:08]} Rc3 {[%emt 0:00:58]} 49. Rf7+ {[%emt 0:00:23]} Kg8 {[%emt 0:00:08]} 50. Be6 {[%emt 0:00:30]} Re3 {[%emt 0:00:20] [#]} 51. Bd5 $1 {[%emt 0:00:25]} a3 {[%emt 0:00:15] [#]} 52. Kh6 $1 {[%emt 0:00:35]} Rd3 {[%emt 0:00:53]} 53. Bc4 {[%emt 0:00:30]} Ne3 {[%emt 0:00:11]} 54. Rg7+ {[%emt 0:00:04]} (54. Bxd3 $2 {is the wrong capture.} Kxf7 55. Bb1 Kf6 $19) 1-0

[Event "GRENKE Chess Classic 2024"]
[Site "Karlsruhe"]
[Date "2024.03.30"]
[Round "7.2"]
[White "Carlsen, Magnus"]
[Black "Fridman, Daniel"]
[Result "1-0"]
[ECO "C08"]
[WhiteElo "2830"]
[BlackElo "2590"]
[Annotator "TA"]
[PlyCount "83"]
[EventDate "2024.03.26"]
[EventType "tourn"]
[EventCountry "GER"]
[SourceTitle "playchess.com"]
[Source "ChessBase"]
[SourceQuality "1"]
[TimeControl "2700+10"]

{[%evp 17,83,33,41,36,33,38,46,36,46,41,37,27,27,33,25,25,41,35,38,36,39,0,11,6,0,0,0,0,25,13,12,17,7,5,20,17,47,56,63,42,46,39,70,50,87,80,114,114,132,130,122,136,127,148,295,310,299,311,468,460,696,683,775,772,1468,1537,1156,1099]} 1. e4 {[%emt 0:00:10]} e6 {[%emt 0:00:02]} 2. d4 {[%emt 0:00:03]} d5 {[%emt 0:00:01]} 3. Nd2 {[%emt 0:00:03]} c5 {[%emt 0:00:02]} 4. exd5 {[%emt 0:00:13]} exd5 {[%emt 0:00:03]} 5. Bb5+ {[%emt 0:00:14]} Nc6 {[%emt 0:00:02]} 6. Qe2+ {[%emt 0:00:09]} Qe7 {[%emt 0:04:26]} 7. dxc5 {[%emt 0:01:00]} Qxe2+ {[%emt 0:00:04]} 8. Nxe2 {[%emt 0:00:03]} Bxc5 {[%emt 0:00:03]} 9. Nb3 {[%emt 0:00:04]} Bb6 {[%emt 0:00:15]} 10. Bd2 {[%emt 0:06:55][%cal Bc1d2,Bd2c3,Bc3d4][%mdl 32]} Bd7 {[%emt 0:05:13]} 11. a4 {[%emt 0:02:40][%cal Ba2a4,Ba4a5][%mdl 32]} a6 {[%emt 0:09:53]} 12. Bxc6 {[%emt 0:00:04] White is slightly better.} Bxc6 {[%emt 0:00:02]} 13. a5 {[%emt 0:00:08]} Ba7 {[%emt 0:00:02]} 14. Bc3 {[%emt 0:00:17]} f6 {[%emt 0:00:04]} 15. Bd4 {[%emt 0:01:05]} Bb8 {[%emt 0:00:12]} 16. O-O-O {[%emt 0:00:29]} Nh6 {[%emt 0:00:07]} 17. Bb6 {[%emt 0:01:49]} Kf7 {[%emt 0:01:48]} 18. Ned4 {[%emt 0:04:16]} Ng4 {[%emt 0:01:13][%csl LRf2,LRh2]} 19. Nxc6 {[%emt 0:03:49]} (19. Rde1 {is interesting.} h5 20. g3 h4 21. Nf5) 19... bxc6 {[%emt 0:00:03] [#]} 20. c4 $1 {[%emt 0:00:10]} dxc4 {[%emt 0:01:07]} 21. Rd7+ {[%emt 0:00:03]} Kg6 {[%emt 0:00:02]} 22. Nd2 $36 {[%emt 0:00:05][%mdl 2048] White has good play.} Bf4 {[%emt 0:00:45][%cal Og4e5]} 23. Kc2 {[%emt 0:00:38]} Ne5 {[%emt 0:06:45]} 24. Rd4 {[%emt 0:00:10][%csl LRc4,LRf4]} Bxd2 {[%emt 0:00:02]} 25. Kxd2 {[%emt 0:03:26]} c5 {[%emt 0:00:09]} 26. Bxc5 {[%emt 0:01:00]} Rac8 {[%emt 0:03:59]} 27. Bb6 {[%emt 0:00:58]} c3+ {[%emt 0:00:27]} 28. bxc3 {[%emt 0:00:18]} Rc6 29. Rb1 {[%emt 0:00:41]} Rhc8 {[%emt 0:00:58]} 30. Rb3 {[%emt 0:00:02]} Re6 {[%emt 0:02:05]} 31. Kc2 {[%emt 0:04:40]} Nc4 {[%emt 0:01:55]} 32. Rb4 $1 {[%emt 0:00:19]} Rec6 {[%emt 0:02:42]} 33. Kb3 {[%emt 0:04:07] Prevents Na3} Nxb6 {[%emt 0:04:00]} 34. axb6 $16 {[%emt 0:00:02][%mdl 4096] Endgame. KRR-KRR} Rb8 {[%emt 0:00:01][%cal Oa6a5] [#]} 35. c4 $1 {[%emt 0:00:17][%cal Bc3c4,Bc4c5][%mdl 32] Black must now prevent b7.} Rbxb6 {[%emt 0:01:30] [#]} (35... Kf5 $16 36. b7 Rc7) 36. c5 $1 $18 {[%emt 0:00:05][%mdl 512]} Rxb4+ {[%emt 0:00:03]} 37. Kxb4 {[%emt 0:00:02] KR-KR} f5 {[%emt 0:00:04]} (37... Kf5 {was necessary.} 38. Rd7 h5) 38. Kc4 {[%emt 0:00:37] Kd5 would now be deadly. White is clearly winning.} Kf6 {[%emt 0:00:12]} (38... Rc8 $142 39. Rd6+ Kg5 40. Rxa6 f4) 39. Kd5 {[%emt 0:00:43]} Rc8 {[%emt 0:00:08]} 40. c6 {[%emt 0:00:18]} Rd8+ {[%emt 0:01:06] [#]} 41. Kc5 $1 {[%emt 0:00:01]} Rc8 {[%emt 0:00:13]} 42. f4 {[%emt 0:00:41] Weighted Error Value: White=0.03 (flawless) /Black=0.27 (precise) .  Mistake:       	---       	Black=3      Inaccurate:     	White=1     	Black=4      OK:         	White=15    	Black=10     Best:        	White=3     	Black=4      Strong:       	White=2     	---        Brilliant:      	White=1     	---} 1-0